Workbook

Sheet CENNIK
F1: OFERTA DLA DOMU | H1: IMMCOD1125_00
F3: Oferta obowiązująca od 07.11.2025
A5: LP | B5: DZIAŁ | C5: KOD | D5: KOD CN | E5: EAN | F5: OPIS PRODUKTU | G5: JEDN. | H5: CENA NETTO | I5: VAT | J5: CENA BRUTTO | K5: GRUPA RABATOWA | L5: Status produktu | M5: Dostępność | N5: KOMENTARZ | O5: PKWiU | P5: MPP | Q5: F-GAZ
A6: 1 | B6: 01. Pompy ciepła | C6: 99000149 | D6: N.D. | E6: 5907538010264 | F6: ZESTAW VICTRIX HYBRID PLUS M200 | G6: szt. | H6: 36,042.00 zł | I6: 23% | J6: =H6*(1+I6) -> 44,331.66 zł | K6: A | L6: Standard | Q6: N.D.
A7: 2 | B7: 01. Pompy ciepła | C7: 99000174 | D7: N.D. | E7: 5907538010615 | F7: ZESTAW MAGIS PRO 4 V2 M200 B50 | G7: szt. | H7: 39,085.00 zł | I7: 23% | J7: 48,074.55 zł | K7: A | L7: Standard | Q7: N.D.
A8: 3 | B8: 01. Pompy ciepła | C8: 99000175 | D8: N.D. | E8: 5907538010622 | F8: ZESTAW MAGIS PRO 6 V2 M200 B50 | G8: szt. | H8: 39,699.00 zł | I8: 23% | J8: 48,829.77 zł | K8: A | L8: Standard | Q8: N.D.
A9: 4 | B9: 01. Pompy ciepła | C9: 99000176 | D9: N.D. | E9: 5907538010639 | F9: ZESTAW MAGIS PRO 9 V2 M250 B100 | G9: szt. | H9: 45,789.00 zł | I9: 23% | J9: 56,320.47 zł | K9: A | L9: Standard | Q9: N.D.
A10: 5 | B10: 01. Pompy ciepła | C10: 99000317 | D10: N.D. | E10: 5907538013029 | F10: ZESTAW MAGIS PRO 9 V2 M300 B100 | G10: szt. | H10: 46,139.00 zł | I10: 23% | J10: 56,750.97 zł | K10: A | L10: Standard | Q10: N.D.
A11: 6 | B11: 01. Pompy ciepła | C11: 99000153 | D11: N.D. | E11: 5907538010301 | F11: ZESTAW MAGIS PRO 12 V2 T I M300 B100 | G11: szt. | H11: 54,252.00 zł | I11: 23% | J11: 66,729.96 zł | K11: A | L11: Standard | Q11: N.D.
A12: 7 | B12: 01. Pompy ciepła | C12: 99000154 | D12: N.D. | E12: 5907538010318 | F12: ZESTAW MAGIS PRO 14 V2 T I M300 B250 | G12: szt. | H12: 60,717.00 zł | I12: 23% | J12: 74,681.91 zł | K12: A | L12: Standard | Q12: N.D.
A13: 8 | B13: 01. Pompy ciepła | C13: 99000155 | D13: N.D. | E13: 5907538010325 | F13: ZESTAW MAGIS PRO 16 V2 T I M300 B250 | G13: szt. | H13: 61,267.00 zł | I13: 23% | J13: 75,358.41 zł | K13: A | L13: Standard | Q13: N.D.
A14: 9 | B14: 01. Pompy ciepła | C14: 99000156 | D14: N.D. | E14: 5907538010332 | F14: ZESTAW MAGIS COMBO PLUS 4 V2 M200 B50 | G14: szt. | H14: 46,722.00 zł | I14: 23% | J14: 57,468.06 zł | K14: A | L14: Standard | P14: TAK | Q14: N.D.
A15: 10 | B15: 01. Pompy ciepła | C15: 99000170 | D15: N.D. | E15: 5907538010554 | F15: ZESTAW MAGIS COMBO PLUS 6 V2 M250 B50 | G15: szt. | H15: 50,880.00 zł | I15: 23% | J15: 62,582.40 zł | K15: A | L15: Standard | P15: TAK | Q15: N.D.
A16: 11 | B16: 01. Pompy ciepła | C16: 99000171 | D16: N.D. | E16: 5907538010561 | F16: ZESTAW MAGIS COMBO PLUS 9 V2 M250 B50 | G16: szt. | H16: 53,019.00 zł | I16: 23% | J16: 65,213.37 zł | K16: A | L16: Standard | P16: TAK | Q16: N.D.
A17: 12 | B17: 01. Pompy ciepła | C17: 99000137 | D17: N.D. | E17: 5907538010165 | F17: ZESTAW MAGIS COMBO PLUS 9 V2 M300 B50 | G17: szt. | H17: 53,402.00 zł | I17: 23% | J17: 65,684.46 zł | K17: A | L17: Standard | P17: TAK | Q17: N.D.
A18: 13 | B18: 01. Pompy ciepła | C18: 99000159 | D18: N.D. | E18: 5907538010363 | F18: ZESTAW MAGIS COMBO PLUS 12 V2 T I M300 B100 | G18: szt. | H18: 63,337.00 zł | I18: 23% | J18: 77,904.51 zł | K18: A | L18: Standard | P18: TAK | Q18: N.D.
A19: 14 | B19: 01. Pompy ciepła | C19: 99000160 | D19: N.D. | E19: 5907538010370 | F19: ZESTAW MAGIS COMBO PLUS 14 V2 T I M300 B250 | G19: szt. | H19: 68,349.00 zł | I19: 23% | J19: 84,069.27 zł | K19: A | L19: Standard | P19: TAK | Q19: N.D.
A20: 15 | B20: 01. Pompy ciepła | C20: 99000161 | D20: N.D. | E20: 5907538010387 | F20: ZESTAW MAGIS COMBO PLUS 16 V2 T I M300 B250 | G20: szt. | H20: 70,613.00 zł | I20: 23% | J20: 86,853.99 zł | K20: A | L20: Standard | P20: TAK | Q20: N.D.
A21: 16 | B21: 01. Pompy ciepła | C21: 99000177 | D21: N.D. | E21: 5907538010646 | F21: ZESTAW MAGIS M4 EH200 B50 | G21: szt. | H21: 35,511.00 zł | I21: 23% | J21: 43,678.53 zł | K21: A | L21: Standard | Q21: N.D.
A22: 17 | B22: 01. Pompy ciepła | C22: 99000178 | D22: N.D. | E22: 5907538010653 | F22: ZESTAW MAGIS M6 EH200 B50 | G22: szt. | H22: 36,340.00 zł | I22: 23% | J22: 44,698.20 zł | K22: A | L22: Standard | Q22: N.D.
A23: 18 | B23: 01. Pompy ciepła | C23: 99000179 | D23: N.D. | E23: 5907538010660 | F23: ZESTAW MAGIS M8 EH250 B100 | G23: szt. | H23: 40,008.00 zł | I23: 23% | J23: 49,209.84 zł | K23: A | L23: Standard | Q23: N.D.
A24: 19 | B24: 01. Pompy ciepła | C24: 99000316 | D24: N.D. | E24: 5907538013012 | F24: ZESTAW MAGIS M8 EH300 B100 | G24: szt. | H24: 40,599.00 zł | I24: 23% | J24: 49,936.77 zł | K24: A | L24: Standard | Q24: N.D.
A25: 20 | B25: 01. Pompy ciepła | C25: 99000180 | D25: N.D. | E25: 5907538010677 | F25: ZESTAW MAGIS M12 EH300 B100 | G25: szt. | H25: 48,958.00 zł | I25: 23% | J25: 60,218.34 zł | K25: A | L25: Standard | Q25: N.D.
A26: 21 | B26: 01. Pompy ciepła | C26: 99000181 | D26: N.D. | E26: 5907538010684 | F26: ZESTAW MAGIS M14 EH300 B100 | G26: szt. | H26: 50,439.00 zł | I26: 23% | J26: 62,039.97 zł | K26: A | L26: Standard | Q26: N.D.
A27: 22 | B27: 01. Pompy ciepła | C27: 99000182 | D27: N.D. | E27: 5907538010691 | F27: ZESTAW MAGIS M16 EH300 B100 | G27: szt. | H27: 50,898.00 zł | I27: 23% | J27: 62,604.54 zł | K27: A | L27: Standard | Q27: N.D.
A28: 23 | B28: 01. Pompy ciepła | C28: 3.035596 | D28: 84158100 | E28: 8015065158964 | F28: MAGIS HERCULES MINI HYDRO 5 EH | G28: szt. | H28: 45,150.00 zł | I28: 23% | J28: 55,534.50 zł | K28: A | L28: Standard | O28: 28.25.12.0 | Q28: hermetyczne
A29: 24 | B29: 01. Pompy ciepła | C29: 3.035597 | D29: 84158100 | E29: 8015065158957 | F29: MAGIS HERCULES MINI HYDRO 8 EH | G29: szt. | H29: 47,500.00 zł | I29: 23% | J29: 58,425.00 zł | K29: A | L29: Standard | O29: 28.25.12.0 | Q29: hermetyczne
A30: 25 | B30: 01. Pompy ciepła | C30: 3.035599 | D30: 84158100 | E30: 8015065158933 | F30: MAGIS HERCULES MINI HYDRO 12 T EH | G30: szt. | H30: 55,500.00 zł | I30: 23% | J30: 68,265.00 zł | K30: A | L30: Standard | O30: 28.25.12.0 | Q30: hermetyczne
A31: 26 | B31: 01. Pompy ciepła | C31: 3.026301 | D31: 84159000 | E31: 8015065066115 | F31: HYDRAULICZNY ROZDZIELACZ STEFOWY do współpracy z Magis PRO/COMBO 4-6-9 V2, Magis HERCULES PRO Mini 6-9 EH, Mini Hydro 5-8 EH Moduł Wysoka/niska temperatura | G31: szt. | H31: 9,251.00 zł | I31: 23% | J31: =H31*(1+I31) -> 11,378.73 zł | K31: A | L31: Na zapytanie | O31: 28.25.30.0 | Q31: N.D.
A32: 27 | B32: 01. Pompy ciepła | C32: 3.032264 | D32: 84137030 | E32: 8015065145353 | F32: Hydrauliczny rozdzielacz, moduł 2-strefowy, do Magis PRO/COMBO 4-6-9 V2, Magis HERCULES PRO Mini 6-9 EH oraz Hercules Mini Hydro 5-8 EH (tylko grzanie) | G32: szt. | H32: 4,595.00 zł | I32: 23% | J32: 5,651.85 zł | K32: A | L32: Na zapytanie | O32: 28.13.14.0 | Q32: N.D.
A33: 28 | B33: 01. Pompy ciepła | C33: 3.032265 | D33: 84137030 | E33: 8015065145360 | F33: Hydrauliczny rozdzielacz strefowy, moduł wysoka/niska temperatura do Magis PRO/COMBO 4-6-9 V2, Magis HERCULES PRO Mini 6-9 EH oraz Hercules Mini Hydro 5-8 EH (tylko grzanie) | G33: szt. | H33: 5,934.00 zł | I33: 23% | J33: 7,298.82 zł | K33: A | L33: Na zapytanie | O33: 28.13.14.0 | Q33: N.D.
A34: 29 | B34: 01. Pompy ciepła | C34: 3.031695 | D34: 84 15 9000 | E34: 8015065127748 | F34: HYDRAULICZNY ROZDZIELACZ STEFOWY do współpracy z Magis PRO/COMBO 12-14-16 V2 T I, Magis HERCULES Mini Hydro 12 T EH Moduł Wysoka/niska temperatura | G34: szt. | H34: 9,172.00 zł | I34: 23% | J34: 11,281.56 zł | K34: A | L34: Na zapytanie | O34: 28.25.30.0 | Q34: N.D.
A35: 30 | B35: 01. Pompy ciepła | C35: 3.035333 | D35: 84 137030 | E35: 8015065157240 | F35: HYDRAULICZNY ROZDZIELACZ STEFOWY do współpracy z Magis PRO/COMBO 12-14-16 V2 T I, Magis HERCULES MINI HYDRO 12 T EH (tylko grzanie) Moduł wysoka/niska temperatura | G35: szt. | H35: 7,120.00 zł | I35: 23% | J35: 8,757.60 zł | K35: A | L35: Na zapytanie | O35: 28.13.14.0 | Q35: N.D.
A36: 31 | B36: 01. Pompy ciepła | C36: 3.035334 | D36: 84 137030 | E36: 8015065157257 | F36: HYDRAULICZNY ROZDZIELACZ STEFOWY, do współpracy z Magis PRO/COMBO 12-14-16 V2 T I, Magis HERCULES MINI HYDRO 12 T EH (tylko grzanie) Moduł 2-strefowy | G36: szt. | H36: 6,120.00 zł | I36: 23% | J36: 7,527.60 zł | K36: A | L36: Na zapytanie | O36: 28.13.14.0 | Q36: N.D.
A37: 32 | B37: 01. Pompy ciepła | C37: 3.020632 | D37: 8481 80 59 | E37: 8015065550423 | F37: Zawór trójdrogowy przełączający | G37: szt. | H37: 800.00 zł | I37: 23% | J37: =H37*(1+I37) -> 984.00 zł | K37: A | L37: Standard | N37: Zastrzegamy możliwość realizacji zamówień na zawory trójdrogowe zamiennie - w zależności od dostępności poszczególnych modeli. | O37: 28.14.13.0 | Q37: N.D.
A38: 33 | B38: 01. Pompy ciepła | C38: 43080401 | D38: 8481 80 11 | E38: 7330193045179 | F38: Zawór trójdrogowy przełączający | G38: szt. | H38: 800.00 zł | I38: 23% | J38: 984.00 zł | K38: A | L38: Standard | O38: 28.14.12.0 | Q38: N.D.
A39: 34 | B39: 01. Pompy ciepła | C39: 3.025003 | D39: 85433070 | E39: 8015065055997 | F39: Zestaw anod tytanowych do Magis Hercules (2 szt.) | G39: szt. | H39: 1,649.00 zł | I39: 23% | J39: 2,028.27 zł | K39: A | L39: Na zapytanie | O39: 28.49.12.0 | Q39: N.D.
A40: 35 | B40: 01. Pompy ciepła | C40: 1.033683 | D40: 85332100 | E40: 8015065044083 | F40: Sonda kontaktowa zasobnika | G40: szt. | H40: 70.00 zł | I40: 23% | J40: =H40*(1+I40) -> 86.10 zł | K40: A | L40: Standard | O40: 27.90.60.0 | Q40: N.D.
A41: 36 | B41: 01. Pompy ciepła | C41: 3.033210 | D41: 84137030 | E41: 8015065145339 | F41: Zestaw solarny do MAGIS HERCULES PRO MINI / MINI HYDRO | G41: szt. | H41: 10,502.00 zł | I41: 23% | J41: =H41*(1+I41) -> 12,917.46 zł | K41: A | L41: Na zapytanie | O41: 28.13.14.0 | Q41: N.D.
A42: 37 | B42: 01. Pompy ciepła | C42: 3.033217 | D42: 84137030 | E42: 8015065145346 | F42: Zestaw recyrkulacyjny z pompą do MAGIS HERCULES PRO MINI / MINI HYDRO | G42: szt. | H42: 1,286.00 zł | I42: 23% | J42: 1,581.78 zł | K42: A | L42: Na zapytanie | O42: 28.13.14.0 | Q42: N.D.
A43: 38 | B43: 01. Pompy ciepła | C43: 3.031943 | D43: 85364900 | E43: 8015065129810 | F43: Zestaw 2-óch przekaźników | G43: szt. | H43: 363.00 zł | I43: 23% | J43: =H43*(1+I43) -> 446.49 zł | K43: A | L43: Na zapytanie | O43: 27.12.24.0 | Q43: N.D.
A44: 39 | B44: 01. Pompy ciepła | C44: 3.031944 | D44: 90328900 | E44: 8015065131530 | F44: Zestaw rozszerzeń | G44: szt. | H44: 2,295.00 zł | I44: 23% | J44: =H44*(1+I44) -> 2,822.85 zł | K44: A | L44: Na zapytanie | O44: 26.51.70.0 | Q44: N.D.
A45: 40 | B45: 01. Pompy ciepła | C45: 3.034183 | D45: 84159000 | E45: 8015065145391 | F45: Maskownica przyłączy do Magis Hercules Pro Mini / Mini Hydro | G45: szt. | H45: 420.00 zł | I45: 23% | J45: 516.60 zł | K45: A | L45: Na zapytanie | O45: 28.25.30.0 | Q45: N.D.
A46: 41 | B46: 01. Pompy ciepła | C46: 3.015266 | D46: 85332100 | E46: 8015065711206 | F46: Sonda zewnętrzna | G46: szt. | H46: 208.00 zł | I46: 23% | J46: =H46*(1+I46) -> 255.84 zł | K46: A | L46: Standard | O46: 27.90.60.0 | Q46: N.D.
A47: 42 | B47: 01. Pompy ciepła | C47: 3.030863 | D47: 90321020 | E47: 8015065118562 | F47: Panel sterowania do Magis Hercules/ Magis V2 | G47: szt. | H47: 1,075.00 zł | I47: 23% | J47: =H47*(1+I47) -> 1,322.25 zł | K47: A | L47: Standard | O47: 26.51.70.0 | Q47: N.D.
A48: 43 | B48: 01. Pompy ciepła | C48: 3.030992 | D48: 84159000 | E48: 8015065118555 | F48: Czujnik temperatury i wilgotności do MAGIS Hercules/ Magis V2 | G48: szt. | H48: 1,060.00 zł | I48: 23% | J48: =H48*(1+I48) -> 1,303.80 zł | K48: A | L48: Standard | O48: 28.25.30.0 | Q48: N.D.
A49: 44 | B49: 01. Pompy ciepła | C49: 3.035330 | D49: 84818099 | E49: 8015065159626 | F49: Zestaw podłączeniowy z zaworem nadmiarowo-upustowym do Magis Hercules Mini Hydro | G49: szt. | H49: 1,710.00 zł | I49: 23% | J49: =H49*(1+I49) -> 2,103.30 zł | K49: A | L49: Na zapytanie | O49: =VLOOKUP(C49,[1]Arkusz1!$B:$D,3,0) -> 28.14.13.0 | Q49: N.D.
A50: 45 | B50: 01. Pompy ciepła | C50: 3.034095 | D50: 84158100 | E50: 8015065148484 | F50: MAGIS HERCULES PRO MINI 6 EH | G50: szt. | H50: 45,700.00 zł | I50: 23% | J50: 56,211.00 zł | K50: A | L50: Standard | O50: 28.25.12.0 | Q50: niehermetyczne
A51: 46 | B51: 01. Pompy ciepła | C51: 3.034096 | D51: 84158100 | E51: 8015065148477 | F51: MAGIS HERCULES PRO MINI 9 EH | G51: szt. | H51: 49,500.00 zł | I51: 23% | J51: 60,885.00 zł | K51: A | L51: Standard | O51: 28.25.12.0 | Q51: niehermetyczne
A52: 47 | B52: 01. Pompy ciepła | C52: 3.026301 | D52: 84159000 | E52: 8015065066115 | F52: HYDRAULICZNY ROZDZIELACZ STEFOWY do współpracy z Magis PRO/COMBO 4-6-9 V2, Magis HERCULES PRO Mini 6-9 EH, Mini Hydro 5-8 EH Moduł Wysoka/niska temperatura | G52: szt. | H52: 9,251.00 zł | I52: 23% | J52: 11,378.73 zł | K52: A | L52: Na zapytanie | O52: 28.25.30.0 | Q52: N.D.
A53: 48 | B53: 01. Pompy ciepła | C53: 3.032264 | D53: 84137030 | E53: 8015065145353 | F53: Hydrauliczny rozdzielacz, moduł 2-strefowy, do Magis PRO/COMBO 4-6-9 V2, Magis HERCULES PRO Mini 6-9 EH oraz Hercules Mini Hydro 5-8 EH (tylko grzanie) | G53: szt. | H53: 4,595.00 zł | I53: 23% | J53: 5,651.85 zł | K53: A | L53: Na zapytanie | O53: 28.13.14.0 | Q53: N.D.
A54: 49 | B54: 01. Pompy ciepła | C54: 3.032265 | D54: 84137030 | E54: 8015065145360 | F54: Hydrauliczny rozdzielacz strefowy, moduł wysoka/niska temperatura do Magis PRO/COMBO 4-6-9 V2, Magis HERCULES PRO Mini 6-9 EH oraz Hercules Mini Hydro 5-8 EH (tylko grzanie) | G54: szt. | H54: 5,934.00 zł | I54: 23% | J54: 7,298.82 zł | K54: A | L54: Na zapytanie | O54: 28.13.14.0 | Q54: N.D.
A55: 50 | B55: 01. Pompy ciepła | C55: 3.033210 | D55: 84137030 | E55: 8015065145339 | F55: Zestaw solarny do MAGIS HERCULES PRO MINI / MINI HYDRO | G55: szt. | H55: 10,502.00 zł | I55: 23% | J55: 12,917.46 zł | K55: A | L55: Na zapytanie | O55: 28.13.14.0 | Q55: N.D.
A56: 51 | B56: 01. Pompy ciepła | C56: 3.033217 | D56: 84137030 | E56: 8015065145346 | F56: Zestaw recyrkulacyjny z pompą do MAGIS HERCULES PRO MINI / MINI HYDRO | G56: szt. | H56: 1,286.00 zł | I56: 23% | J56: 1,581.78 zł | K56: A | L56: Na zapytanie | O56: 28.13.14.0 | Q56: N.D.
A57: 52 | B57: 01. Pompy ciepła | C57: 3.034333 | D57: 84818099 | E57: 8015065145414 | F57: Zestaw podłączeniowy z zaworem nadmiarowo-upustowym do Magis Hercules Pro Mini | G57: szt. | H57: 1,230.00 zł | I57: 23% | J57: 1,512.90 zł | K57: A | L57: Standard | O57: =VLOOKUP(C57,[1]Arkusz1!$B:$D,3,0) -> 28.14.13.0 | Q57: N.D.
A58: 53 | B58: 01. Pompy ciepła | C58: 3.027385 | D58: 85168080 | E58: 8015065087608 | F58: Zestaw ochrony antyzamrożeniowej - do jednostki zewnętrznej ( dotyczy Magis Hercules Pro Mini 6 EH) | G58: szt. | H58: 379.00 zł | I58: 23% | J58: 466.17 zł | K58: A | L58: Standard | O58: 27.51.29.0 | Q58: N.D.
A59: 54 | B59: 01. Pompy ciepła | C59: 3.020632 | D59: 8481 80 59 | E59: 8015065550423 | F59: Zawór trójdrogowy przełączający | G59: szt. | H59: 800.00 zł | I59: 23% | J59: 984.00 zł | K59: A | L59: Standard | N59: Zastrzegamy możliwość realizacji zamówień na zawory trójdrogowe zamiennie - w zależności od dostępności poszczególnych modeli. Zawory dostępne wyłącznie przy zakupie pompy ciepła Magis M | O59: 28.14.13.0 | Q59: N.D.
A60: 55 | B60: 01. Pompy ciepła | C60: 43080401 | D60: 8481 80 11 | E60: 7330193045179 | F60: Zawór trójdrogowy przełączający | G60: szt. | H60: 800.00 zł | I60: 23% | J60: 984.00 zł | K60: A | L60: Standard | O60: 28.14.12.0 | Q60: N.D.
A61: 56 | B61: 01. Pompy ciepła | C61: 3.025003 | D61: 85433070 | E61: 8015065055997 | F61: Zestaw anod tytanowych do Magis Hercules (2 szt.) | G61: szt. | H61: 1,649.00 zł | I61: 23% | J61: 2,028.27 zł | K61: A | L61: Na zapytanie | O61: 28.49.12.0 | Q61: N.D.
A62: 57 | B62: 01. Pompy ciepła | C62: 3.031943 | D62: 85364900 | E62: 8015065129810 | F62: Zestaw 2-óch przekaźników | G62: szt. | H62: 363.00 zł | I62: 23% | J62: 446.49 zł | K62: A | L62: Na zapytanie | O62: 27.12.24.0 | Q62: N.D.
A63: 58 | B63: 01. Pompy ciepła | C63: 3.031944 | D63: 90328900 | E63: 8015065131530 | F63: Zestaw rozszerzeń | G63: szt. | H63: 2,295.00 zł | I63: 23% | J63: 2,822.85 zł | K63: A | L63: Na zapytanie | O63: 26.51.70.0 | Q63: N.D.
A64: 59 | B64: 01. Pompy ciepła | C64: 3.034183 | D64: 84159000 | E64: 8015065145391 | F64: Maskownica przyłączy do Magis Hercules Pro Mini / Mini Hydro | G64: szt. | H64: 420.00 zł | I64: 23% | J64: 516.60 zł | K64: A | L64: Na zapytanie | O64: 28.25.30.0 | Q64: N.D.
A65: 60 | B65: 01. Pompy ciepła | C65: 3.034903 | D65: 90328900 | E65: 8015065151668 | F65: Moduł Wi-Fi Dominus V2 | G65: szt. | H65: 1,200.00 zł | I65: 23% | J65: =H65*(1+I65) -> 1,476.00 zł | K65: A | L65: Standard | N65: Nowość! | O65: 26.51.70.0 | Q65: N.D.
A66: 61 | B66: 01. Pompy ciepła | C66: 3.015266 | D66: 85332100 | E66: 8015065711206 | F66: Sonda zewnętrzna | G66: szt. | H66: 208.00 zł | I66: 23% | J66: 255.84 zł | K66: A | L66: Standard | O66: 27.90.60.0 | Q66: N.D.
A67: 62 | B67: 01. Pompy ciepła | C67: 3.030863 | D67: 90321020 | E67: 8015065118562 | F67: Panel sterowania do Magis Hercules/ Magis V2 | G67: szt. | H67: 1,075.00 zł | I67: 23% | J67: 1,322.25 zł | K67: A | L67: Standard | O67: 26.51.70.0 | Q67: N.D.
A68: 63 | B68: 01. Pompy ciepła | C68: 3.030992 | D68: 84159000 | E68: 8015065118555 | F68: Czujnik temperatury i wilgotności do MAGIS Hercules/ Magis V2 | G68: szt. | H68: 1,060.00 zł | I68: 23% | J68: 1,303.80 zł | K68: A | L68: Standard | O68: 28.25.30.0 | Q68: N.D.
A69: 64 | B69: 01. Pompy ciepła | C69: 3.030434 | D69: 84158100 | E69: 8015065120350 | F69: MAGIS HERCULES PRO 12 T | G69: szt. | H69: 71,262.00 zł | I69: 23% | J69: 87,652.26 zł | K69: A | L69: Na zapytanie | O69: 28.25.12.0 | Q69: niehermetyczne
A70: 65 | B70: 01. Pompy ciepła | C70: 3.030436 | D70: 84158100 | E70: 8015065120374 | F70: MAGIS HERCULES PRO 16 T | G70: szt. | H70: 77,265.00 zł | I70: 23% | J70: 95,035.95 zł | K70: A | L70: Na zapytanie | O70: 28.25.12.0 | Q70: niehermetyczne
A71: 66 | B71: 01. Pompy ciepła | C71: 3.030943 | D71: 84137030 | E71: 8015065121494 | F71: Zestaw strefy 2-giej mieszającej do Magis Hercules Pro 12-16 | G71: szt. | H71: 4,185.00 zł | I71: 23% | J71: 5,147.55 zł | K71: A | L71: Na zapytanie | O71: 28.13.14.0 | Q71: N.D.
A72: 67 | B72: 01. Pompy ciepła | C72: 3.030944 | D72: 84137030 | E72: 8015065121500 | F72: Zestaw strefy 3-ciej mieszającej do Magis Hercules Pro 12-16 | G72: szt. | H72: 5,802.00 zł | I72: 23% | J72: 7,136.46 zł | K72: A | L72: Na zapytanie | O72: 28.13.14.0 | Q72: N.D.
A73: 68 | B73: 01. Pompy ciepła | C73: 3.030857 | D73: 84137030 | E73: 8015065121432 | F73: Zestaw solarny do MAGIS HERCULES PRO | G73: szt. | H73: 5,986.00 zł | I73: 23% | J73: 7,362.78 zł | K73: A | L73: Na zapytanie | O73: 28.13.14.0 | Q73: N.D.
A74: 69 | B74: 01. Pompy ciepła | C74: 3.030858 | D74: 84137030 | E74: 8015065121449 | F74: Zestaw recyrkulacyjny z pompą do MAGIS HERCULES PRO | G74: szt. | H74: 1,144.00 zł | I74: 23% | J74: 1,407.12 zł | K74: A | L74: Na zapytanie | O74: 28.13.14.0 | Q74: N.D.
A75: 70 | B75: 01. Pompy ciepła | C75: 3.030899 | D75: 85168080 | E75: 8015065121517 | F75: Dodatkowa grzałka elektryczna 3 kW do jednostki wewnętrznej MAGIS Hercules Pro | G75: szt. | H75: 961.00 zł | I75: 23% | J75: 1,182.03 zł | K75: A | L75: Na zapytanie | O75: 27.51.29.0 | Q75: N.D.
A76: 71 | B76: 01. Pompy ciepła | C76: 3.030862 | D76: 85168080 | E76: 8015065121487 | F76: Zintegrowana dodatkowa grzałka elektryczna CWU 2,3 kW | G76: szt. | H76: 1,229.00 zł | I76: 23% | J76: 1,511.67 zł | K76: A | L76: Na zapytanie | O76: 27.51.29.0 | Q76: N.D.
A77: 72 | B77: 01. Pompy ciepła | C77: 3.020632 | D77: 84818059 | E77: 8015065550423 | F77: Zawór trójdrogowy przełączający | G77: szt. | H77: 800.00 zł | I77: 23% | J77: 984.00 zł | K77: A | L77: Standard | O77: 28.14.13.0 | Q77: N.D.
A78: 73 | B78: 01. Pompy ciepła | C78: 3.025003 | D78: 85433070 | E78: 8015065055997 | F78: Zestaw anod tytanowych do Magis Hercules (2 szt.) | G78: szt. | H78: 1,649.00 zł | I78: 23% | J78: 2,028.27 zł | K78: A | L78: Na zapytanie | O78: 28.49.12.0 | Q78: N.D.
A79: 74 | B79: 01. Pompy ciepła | C79: 3.034903 | D79: 90328900 | E79: 8015065151668 | F79: Moduł Wi-Fi Dominus V2 | G79: szt. | H79: 1,200.00 zł | I79: 23% | J79: 1,476.00 zł | K79: A | L79: Standard | N79: Nowość! | O79: 26.51.70.0 | Q79: N.D.
A80: 75 | B80: 01. Pompy ciepła | C80: 3.030863 | D80: 90321020 | E80: 8015065118562 | F80: Panel sterowania do Magis Hercules / Magis V2 | G80: szt. | H80: 1,075.00 zł | I80: 23% | J80: 1,322.25 zł | K80: A | L80: Standard | O80: 26.51.70.0 | Q80: N.D.
A81: 76 | B81: 01. Pompy ciepła | C81: 3.030992 | D81: 8415 90 00 | E81: 8015065118555 | F81: Czujnik temperatury i wilgotności do MAGIS Hercules / Magis V2 | G81: szt. | H81: 1,060.00 zł | I81: 23% | J81: 1,303.80 zł | K81: A | L81: Na zapytanie | O81: 28.25.30.0 | Q81: N.D.
A82: 77 | B82: 01. Pompy ciepła | C82: 3.015266 | D82: 8533 21 00 | E82: 8015065711206 | F82: Sonda zewnętrzna | G82: szt. | H82: 208.00 zł | I82: 23% | J82: 255.84 zł | K82: A | L82: Standard | O82: 27.90.60.0 | Q82: N.D.
A83: 78 | B83: 01. Pompy ciepła | C83: 3.030606 | D83: 8415 81 00 | E83: 8015065116377 | F83: MAGIS PRO 4 V2 | G83: szt. | H83: 26,339.00 zł | I83: 23% | J83: 32,396.97 zł | K83: A | L83: Standard | O83: 28.25.12.0 | Q83: niehermetyczne
A84: 79 | B84: 01. Pompy ciepła | C84: 3.030607 | D84: 8415 81 00 | E84: 8015065117244 | F84: MAGIS PRO 6 V2 | G84: szt. | H84: 26,953.00 zł | I84: 23% | J84: 33,152.19 zł | K84: A | L84: Standard | O84: 28.25.12.0 | Q84: niehermetyczne
A85: 80 | B85: 01. Pompy ciepła | C85: 3.030608 | D85: 8415 81 00 | E85: 8015065117251 | F85: MAGIS PRO 9 V2 | G85: szt. | H85: 31,969.00 zł | I85: 23% | J85: 39,321.87 zł | K85: A | L85: Standard | O85: 28.25.12.0 | Q85: niehermetyczne
A86: 81 | B86: 01. Pompy ciepła | C86: 3.030666 | D86: 8415 81 00 | E86: 8015065120411 | F86: MAGIS PRO 12 V2 T I | G86: szt. | H86: 40,082.00 zł | I86: 23% | J86: 49,300.86 zł | K86: A | L86: Standard | O86: 28.25.12.0 | Q86: niehermetyczne
A87: 82 | B87: 01. Pompy ciepła | C87: 3.030667 | D87: 8415 81 00 | E87: 8015065120428 | F87: MAGIS PRO 14 V2 T I | G87: szt. | H87: 44,887.00 zł | I87: 23% | J87: 55,211.01 zł | K87: A | L87: Standard | O87: 28.25.12.0 | Q87: niehermetyczne
A88: 83 | B88: 01. Pompy ciepła | C88: 3.030668 | D88: 8415 81 00 | E88: 8015065120435 | F88: MAGIS PRO 16 V2 T I | G88: szt. | H88: 45,437.00 zł | I88: 23% | J88: 55,887.51 zł | K88: A | L88: Standard | O88: 28.25.12.0 | Q88: niehermetyczne
A89: 84 | B89: 01. Pompy ciepła | C89: 3.030609 | D89: 8415 81 00 | E89: 8015065118913 | F89: MAGIS COMBO 4 V2 | G89: szt. | H89: 35,811.00 zł | I89: 23% | J89: 44,047.53 zł | K89: A | L89: Na zapytanie | O89: 28.25.12.0 | Q89: niehermetyczne
A90: 85 | B90: 01. Pompy ciepła | C90: 3.030611 | D90: 8415 81 00 | E90: 8015065118920 | F90: MAGIS COMBO 6 V2 | G90: szt. | H90: 36,595.00 zł | I90: 23% | J90: 45,011.85 zł | K90: A | L90: Na zapytanie | O90: 28.25.12.0 | Q90: niehermetyczne
A91: 86 | B91: 01. Pompy ciepła | C91: 3.030613 | D91: 8415 81 00 | E91: 8015065118937 | F91: MAGIS COMBO 9 V2 | G91: szt. | H91: 41,530.00 zł | I91: 23% | J91: 51,081.90 zł | K91: A | L91: Na zapytanie | O91: 28.25.12.0 | Q91: niehermetyczne
A92: 87 | B92: 01. Pompy ciepła | C92: 3.027730 | D92: 8403 90 90 | E92: 8015065150708 | F92: ZESTAW PRZEZBROJENIOWY NA GZ 41.5 - MAGIS COMBO 4-9 V2 | G92: szt. | H92: 54.00 zł | I92: 23% | J92: 66.42 zł | K92: A | L92: Na zapytanie | O92: 25.21.13.0 | Q92: N.D.
A93: 88 | B93: 01. Pompy ciepła | C93: 3.019208 | D93: 8403 90 90 | E93: 8015065399626 | F93: ZESTAW PRZEZBROJENIOWY NA PROPAN TECHNICZNY - MAGIS COMBO 4-16 V2 | G93: szt. | H93: 90.00 zł | I93: 23% | J93: =H93*(1+I93) -> 110.70 zł | K93: A | L93: Standard | O93: 25.21.13.0 | Q93: N.D.
A94: 89 | B94: 01. Pompy ciepła | C94: 3.030825 | D94: 8415 81 00 | E94: 8015065120565 | F94: MAGIS COMBO 12 V2 T I | G94: szt. | H94: 49,494.00 zł | I94: 23% | J94: 60,877.62 zł | K94: A | L94: Na zapytanie | O94: 28.25.12.0 | Q94: niehermetyczne
A95: 90 | B95: 01. Pompy ciepła | C95: 3.030826 | D95: 8415 81 00 | E95: 8015065120589 | F95: MAGIS COMBO 14 V2 T I | G95: szt. | H95: 55,201.00 zł | I95: 23% | J95: 67,897.23 zł | K95: A | L95: Na zapytanie | O95: 28.25.12.0 | Q95: niehermetyczne
A96: 91 | B96: 01. Pompy ciepła | C96: 3.030827 | D96: 8415 81 00 | E96: 8015065120602 | F96: MAGIS COMBO 16 V2 T I | G96: szt. | H96: 55,201.00 zł | I96: 23% | J96: 67,897.23 zł | K96: A | L96: Na zapytanie | O96: 28.25.12.0 | Q96: niehermetyczne
A97: 92 | B97: 01. Pompy ciepła | C97: 3.030615 | D97: 8415 81 00 | E97: 8015065118944 | F97: MAGIS COMBO 4 PLUS V2 | G97: szt. | H97: 35,811.00 zł | I97: 23% | J97: 44,047.53 zł | K97: A | L97: Standard | O97: 28.25.12.0 | Q97: niehermetyczne
A98: 93 | B98: 01. Pompy ciepła | C98: 3.030617 | D98: 8415 81 00 | E98: 8015065118951 | F98: MAGIS COMBO 6 PLUS V2 | G98: szt. | H98: 39,012.00 zł | I98: 23% | J98: 47,984.76 zł | K98: A | L98: Standard | O98: 28.25.12.0 | Q98: niehermetyczne
A99: 94 | B99: 01. Pompy ciepła | C99: 3.030619 | D99: 8415 81 00 | E99: 8015065118968 | F99: MAGIS COMBO 9 PLUS V2 | G99: szt. | H99: 41,530.00 zł | I99: 23% | J99: 51,081.90 zł | K99: A | L99: Standard | O99: 28.25.12.0 | Q99: niehermetyczne
A100: 95 | B100: 01. Pompy ciepła | C100: 3.030828 | D100: 8415 81 00 | E100: 8015065120626 | F100: MAGIS COMBO 12 PLUS V2 T I | G100: szt. | H100: 51,000.00 zł | I100: 23% | J100: 62,730.00 zł | K100: A | L100: Standard | O100: 28.25.12.0 | Q100: niehermetyczne
A101: 96 | B101: 01. Pompy ciepła | C101: 3.030829 | D101: 8415 81 00 | E101: 8015065120640 | F101: MAGIS COMBO 14 PLUS V2 T I | G101: szt. | H101: 54,352.00 zł | I101: 23% | J101: 66,852.96 zł | K101: A | L101: Standard | O101: 28.25.12.0 | Q101: niehermetyczne
A102: 97 | B102: 01. Pompy ciepła | C102: 3.030830 | D102: 8415 81 00 | E102: 8015065120664 | F102: MAGIS COMBO 16 PLUS V2 T I | G102: szt. | H102: 56,616.00 zł | I102: 23% | J102: 69,637.68 zł | K102: A | L102: Standard | O102: 28.25.12.0 | Q102: niehermetyczne
A103: 98 | B103: 01. Pompy ciepła | C103: 3.019208 | D103: 8403 90 90 | E103: 8015065399626 | F103: ZESTAW PRZEZBROJENIOWY NA PROPAN TECHNICZNY - MAGIS COMBO 4-16 V2 | G103: szt. | H103: 90.00 zł | I103: 23% | J103: 110.70 zł | K103: A | L103: Standard | O103: 25.21.13.0 | Q103: N.D.
A104: 99 | B104: 01. Pompy ciepła | C104: 3.030863 | D104: 9032 10 20 | E104: 8015065118562 | F104: Panel sterowania do Magis Hercules/ Magis V2 | G104: szt. | H104: 1,075.00 zł | I104: 23% | J104: 1,322.25 zł | K104: A | L104: Standard | O104: 26.51.70.0 | Q104: N.D.
A105: 100 | B105: 01. Pompy ciepła | C105: 3.030992 | D105: 8415 90 00 | E105: 8015065118555 | F105: Czujnik temperatury i wilgotności do MAGIS Hercules/ Magis V2 | G105: szt. | H105: 1,060.00 zł | I105: 23% | J105: 1,303.80 zł | K105: A | L105: Standard | O105: 28.25.30.0 | Q105: N.D.
A106: 101 | B106: 01. Pompy ciepła | C106: 3.015350 | D106: 85340090 | E106: 8015065711497 | F106: Płytka przekaźnikowa | G106: szt. | H106: 331.00 zł | I106: 23% | J106: 407.13 zł | K106: A | L106: Standard | O106: =VLOOKUP(C106,[1]Arkusz1!$B:$D,3,0) -> 26.12.10.0 | Q106: N.D.
A107: 102 | B107: 01. Pompy ciepła | C107: 3.030991 | D107: 8516 80 80 | E107: 8015065118586 | F107: Dodatkowa grzałka elektryczna 3 kW do jednostki wewnętrznej | G107: szt. | H107: 930.00 zł | I107: 23% | J107: 1,143.90 zł | K107: A | L107: Standard | N107: Do Magis PRO | O107: 27.51.29.0 | Q107: N.D.
A108: 103 | B108: 01. Pompy ciepła | C108: 3.021522 | D108: 9032 89 00 | E108: 8015065715907 | F108: Zintegrow. sterownik centralny | G108: szt. | H108: 3,526.00 zł | I108: 23% | J108: 4,336.98 zł | K108: A | L108: Standard | O108: 26.51.70.0 | Q108: N.D.
A109: 104 | B109: 01. Pompy ciepła | C109: 3.021524 | D109: 8533 21 00 | E109: 8015065715921 | F109: Sonda temperatury/wilgotnosci | G109: szt. | H109: 831.00 zł | I109: 23% | J109: 1,022.13 zł | K109: A | L109: Na zapytanie | O109: 27.90.60.0 | Q109: N.D.
A110: 105 | B110: 01. Pompy ciepła | C110: 3.021547 | D110: 9032 89 00 | E110: 8015065716027 | F110: Sterownik strefowy | G110: szt. | H110: 1,188.00 zł | I110: 23% | J110: 1,461.24 zł | K110: A | L110: Standard | O110: 26.51.70.0 | Q110: N.D.
A111: 106 | B111: 01. Pompy ciepła | C111: 1.033683 | D111: 8533 21 00 | E111: 8015065044083 | F111: Sonda kontaktowa zasobnika | G111: szt. | H111: 70.00 zł | I111: 23% | J111: 86.10 zł | K111: A | L111: Standard | O111: 27.90.60.0 | Q111: N.D.
A112: 107 | B112: 01. Pompy ciepła | C112: 3.015266 | D112: 8533 21 00 | E112: 8015065711206 | F112: Sonda zewnętrzna | G112: szt. | H112: 208.00 zł | I112: 23% | J112: 255.84 zł | K112: A | L112: Standard | O112: 27.90.60.0 | Q112: N.D.
A113: 108 | B113: 01. Pompy ciepła | C113: 3.026301 | D113: 8415 90 00 | E113: 8015065066115 | F113: HYDRAULICZNY ROZDZIELACZ STEFOWY do współpracy z Magis PRO/COMBO 4-6-9 V2, Magis HERCULES PRO Mini 6-9 EH, Mini Hydro 5-8 EH Moduł Wysoka/niska temperatura | G113: szt. | H113: 9,251.00 zł | I113: 23% | J113: 11,378.73 zł | K113: A | L113: Na zapytanie | O113: 28.25.30.0 | Q113: N.D.
A114: 109 | B114: 01. Pompy ciepła | C114: 3.021527 | D114: 8415 90 00 | E114: 8015065013898 | F114: Hydrauliczny rozdzielacz stefowy | G114: szt. | H114: 12,172.00 zł | I114: 23% | J114: 14,971.56 zł | K114: A | L114: Na zapytanie | O114: 28.25.30.0 | Q114: N.D.
A115: 110 | B115: 01. Pompy ciepła | C115: 3.021528 | D115: 8415 90 00 | E115: 8015065013904 | F115: Hydrauliczny rozdzielacz stefowy - moduł 2 x niska temperatura | G115: szt. | H115: 9,776.00 zł | I115: 23% | J115: 12,024.48 zł | K115: A | L115: Na zapytanie | O115: 28.25.30.0 | Q115: N.D.
A116: 111 | B116: 01. Pompy ciepła | C116: 3.031695 | D116: 8415 90 00 | E116: 8015065127748 | F116: HYDRAULICZNY ROZDZIELACZ STEFOWY do współpracy z Magis PRO/COMBO 12-14-16 V2 T I, Magis HERCULES Mini Hydro 12 T EH Moduł Wysoka/niska temperatura | G116: szt. | H116: 9,172.00 zł | I116: 23% | J116: 11,281.56 zł | K116: A | L116: Na zapytanie | O116: 28.25.30.0 | Q116: N.D.
A117: 112 | B117: 01. Pompy ciepła | C117: 3.027385 | D117: 8516 80 80 | E117: 8015065087608 | F117: Zestaw ochrony antyzamrożeniowej - do jednostki zewnętrznej ( dotyczy Magis Hercules Pro Mini 6 EH) | G117: szt. | H117: 379.00 zł | I117: 23% | J117: 466.17 zł | K117: A | L117: Standard | O117: 27.51.29.0 | Q117: N.D.
A118: 113 | B118: 01. Pompy ciepła | C118: 3.034903 | D118: 90328900 | E118: 8015065151668 | F118: Moduł Wi-Fi Dominus V2 | G118: szt. | H118: 1,200.00 zł | I118: 23% | J118: 1,476.00 zł | K118: A | L118: Standard | N118: Nowość! | O118: 26.51.70.0 | Q118: N.D.
A119: 114 | B119: 01. Pompy ciepła | C119: RB.29650650 | D119: 8481 80 19 | E119: 8019495403700 | F119: Filtr magnetyczny CleanWater z zaworami odcinającymi GW 1" | G119: szt. | H119: 594.00 zł | I119: 23% | J119: 730.62 zł | K119: B | L119: Standard | O119: 28.14.13.0 | Q119: N.D.
A120: 115 | B120: 01. Pompy ciepła | C120: 3.033779 | D120: 8415 81 00 | E120: 8015065139963 | F120: MAGIS M4 EH3 | G120: szt. | H120: 24,430.00 zł | I120: 23% | J120: 30,048.90 zł | K120: A | L120: Standard | O120: 28.25.12.0 | Q120: hermetyczne
A121: 116 | B121: 01. Pompy ciepła | C121: 3.033780 | D121: 8415 81 00 | E121: 8015065139970 | F121: MAGIS M6 EH3 | G121: szt. | H121: 25,259.00 zł | I121: 23% | J121: 31,068.57 zł | K121: A | L121: Standard | O121: 28.25.12.0 | Q121: hermetyczne
A122: 117 | B122: 01. Pompy ciepła | C122: 3.033781 | D122: 8415 81 00 | E122: 8015065139987 | F122: MAGIS M8 EH3 | G122: szt. | H122: 26,971.00 zł | I122: 23% | J122: 33,174.33 zł | K122: A | L122: Standard | O122: 28.25.12.0 | Q122: hermetyczne
A123: 118 | B123: 01. Pompy ciepła | C123: 3.033782 | D123: 8415 81 00 | E123: 8015065139994 | F123: MAGIS M12 T EH9 | G123: szt. | H123: 35,538.00 zł | I123: 23% | J123: 43,711.74 zł | K123: A | L123: Standard | O123: 28.25.12.0 | Q123: hermetyczne
A124: 119 | B124: 01. Pompy ciepła | C124: 3.033783 | D124: 8415 81 00 | E124: 8015065140006 | F124: MAGIS M14 T EH9 | G124: szt. | H124: 37,019.00 zł | I124: 23% | J124: 45,533.37 zł | K124: A | L124: Standard | O124: 28.25.12.0 | Q124: hermetyczne
A125: 120 | B125: 01. Pompy ciepła | C125: 3.033784 | D125: 8415 81 00 | E125: 8015065140013 | F125: MAGIS M16 T EH9 | G125: szt. | H125: 37,478.00 zł | I125: 23% | J125: 46,097.94 zł | K125: A | L125: Standard | O125: 28.25.12.0 | Q125: hermetyczne
A126: 121 | B126: 01. Pompy ciepła | C126: 3.032381 | D126: 8415 81 00 | E126: 8015065132292 | F126: MAGIS M18 T | G126: szt. | H126: 49,447.00 zł | I126: 23% | J126: 60,819.81 zł | K126: A | L126: Standard | O126: 28.25.12.0 | Q126: hermetyczne
A127: 122 | B127: 01. Pompy ciepła | C127: 3.032382 | D127: 8415 81 00 | E127: 8015065132308 | F127: MAGIS M22 T | G127: szt. | H127: 49,987.00 zł | I127: 23% | J127: 61,484.01 zł | K127: A | L127: Standard | O127: 28.25.12.0 | Q127: hermetyczne
A128: 123 | B128: 01. Pompy ciepła | C128: 3.032383 | D128: 8415 81 00 | E128: 8015065132315 | F128: MAGIS M26 T | G128: szt. | H128: 51,892.00 zł | I128: 23% | J128: 63,827.16 zł | K128: A | L128: Standard | O128: 28.25.12.0 | Q128: hermetyczne
A129: 124 | B129: 01. Pompy ciepła | C129: 3.032384 | D129: 8415 81 00 | E129: 8015065132322 | F129: MAGIS M30 T | G129: szt. | H129: 53,797.00 zł | I129: 23% | J129: 66,170.31 zł | K129: A | L129: Standard | O129: 28.25.12.0 | Q129: hermetyczne
A130: 125 | B130: 01. Pompy ciepła | C130: 3.021522 | D130: 9032 89 00 | E130: 8015065715907 | F130: Zintegrow. sterownik centralny | G130: szt. | H130: 3,526.00 zł | I130: 23% | J130: 4,336.98 zł | K130: A | L130: Standard | O130: 26.51.70.0 | Q130: N.D.
A131: 126 | B131: 01. Pompy ciepła | C131: 3.021547 | D131: 9032 89 00 | E131: 8015065716027 | F131: Sterownik strefowy | G131: szt. | H131: 1,188.00 zł | I131: 23% | J131: 1,461.24 zł | K131: A | L131: Standard | O131: 26.51.70.0 | Q131: N.D.
A132: 127 | B132: 01. Pompy ciepła | C132: 3.025954 | D132: 8481 80 81 | E132: 8015065066252 | F132: ZESTAW PODŁĄCZENIOWY DO MAGIS M4-6 (1") | G132: szt. | H132: 510.00 zł | I132: 23% | J132: 627.30 zł | K132: A | L132: Standard | O132: =VLOOKUP(C132,[1]Arkusz1!$B:$D,3,0) -> 28.14.13.0 | Q132: N.D.
A133: 128 | B133: 01. Pompy ciepła | C133: 3.032846 | D133: 8481 80 81 | E133: 8015065135620 | F133: ZESTAW PODŁĄCZENIOWY DO MAGIS M8-30 (1 1/4") | G133: szt. | H133: 1,044.00 zł | I133: 23% | J133: 1,284.12 zł | K133: A | L133: Standard | O133: =VLOOKUP(C133,[1]Arkusz1!$B:$D,3,0) -> 28.14.13.0 | Q133: N.D.
A134: 129 | B134: 01. Pompy ciepła | C134: 3.020632 | D134: 8481 80 59 | E134: 8015065550423 | F134: Zawór trójdrogowy przełączający | G134: szt. | H134: 800.00 zł | I134: 23% | J134: 984.00 zł | K134: A | L134: Standard | N134: Zastrzegamy możliwość realizacji zamówień na zawory trójdrogowe zamiennie - w zależności od dostępności poszczególnych modeli. Zawory dostępne wyłącznie przy zakupie pompy ciepła Magis M | O134: 28.14.13.0 | Q134: N.D.
A135: 130 | B135: 01. Pompy ciepła | C135: 43080401 | D135: 8481 80 11 | E135: 7330193045179 | F135: ZAWÓR TRÓJDROGOWY PRZEŁĄCZAJĄCY DO C.W.U. (Dla MAGIS M4-16) | G135: szt. | H135: 800.00 zł | I135: 23% | J135: 984.00 zł | K135: A | L135: Standard | O135: 28.14.12.0 | Q135: N.D.
A136: 131 | B136: 01. Pompy ciepła | C136: 3.027385 | D136: 8516 80 80 | E136: 8015065087608 | F136: Zestaw ochrony antyzamrożeniowej - do jednostki zewnętrznej ( dotyczy Magis Hercules Pro Mini 6 EH) | G136: szt. | H136: 379.00 zł | I136: 23% | J136: 466.17 zł | K136: A | L136: Standard | O136: 27.51.29.0 | Q136: N.D.
A137: 132 | B137: 01. Pompy ciepła | C137: 3.033324 | D137: 8533 21 00 | E137: 8015065138553 | F137: SONDA NTC DLA MAGIS M | G137: szt. | H137: 278.00 zł | I137: 23% | J137: 341.94 zł | K137: A | L137: Standard | O137: 27.90.60.0 | Q137: N.D.
A138: 133 | B138: 01. Pompy ciepła | C138: RB.29650650 | D138: 8481 80 19 | E138: 8019495403700 | F138: Filtr magnetyczny CleanWater z zaworami odcinającymi GW 1" | G138: szt. | H138: 594.00 zł | I138: 23% | J138: 730.62 zł | K138: B | L138: Standard | O138: 28.14.13.0 | Q138: N.D.
A139: 134 | B139: 01. Pompy ciepła | C139: 3.030698 | D139: 8415 81 00 | E139: 8015065118517 | F139: VICTRIX HYBRID | G139: szt. | H139: 28,052.00 zł | I139: 23% | J139: 34,503.96 zł | K139: A | L139: Na zapytanie | O139: 28.25.12.0 | Q139: hermetyczne
A140: 135 | B140: 01. Pompy ciepła | C140: 3.030699 | D140: 8415 81 00 | E140: 8015065118524 | F140: VICTRIX HYBRID PLUS | G140: szt. | H140: 28,373.00 zł | I140: 23% | J140: 34,898.79 zł | K140: A | L140: Standard | O140: 28.25.12.0 | Q140: hermetyczne
A141: 136 | B141: 01. Pompy ciepła | C141: 3.034178 | D141: 8403 90 90 | E141: 8015065146954 | F141: ZESTAW PRZEZBROJENIOWY NA GZ 41.5 - VICTRIX HYBRID / VICTRIX HYBRID PLUS | G141: szt. | H141: 113.00 zł | I141: 23% | J141: 138.99 zł | K141: A | L141: Standard | O141: 25.21.13.0 | Q141: N.D.
A142: 137 | B142: 01. Pompy ciepła | C142: 3.027856 | D142: 8403 90 90 | E142: 8015065086380 | F142: ZESTAW PRZEZBROJENIOWY NA PROPAN - VICTRIX HYBRID / VICTRIX HYBRID PLUS | G142: szt. | H142: 66.00 zł | I142: 23% | J142: 81.18 zł | K142: A | L142: Standard | O142: 25.21.13.0 | Q142: N.D.
A143: 138 | B143: 01. Pompy ciepła | C143: 1.033683 | D143: 8533 21 00 | E143: 8015065044083 | F143: Sonda kontaktowa zasobnika | G143: szt. | H143: 70.00 zł | I143: 23% | J143: 86.10 zł | K143: A | L143: Standard | O143: 27.90.60.0 | Q143: N.D.
A144: 139 | B144: 01. Pompy ciepła | C144: 3.030930 | D144: 8516 80 20 | E144: 8015065120954 | F144: Zestaw ochrony antyzamrożeniowej - do jednostki zewnętrznej dla VICTRIX HYBRID | G144: szt. | H144: 370.00 zł | I144: 23% | J144: 455.10 zł | K144: A | L144: Standard | O144: 27.51.29.0 | Q144: N.D.
A145: 140 | B145: 01. Pompy ciepła | C145: 3.026374 | D145: 84139200 | E145: 8015065067457 | F145: Pompka do odprowadzania kondensatu | G145: szt. | H145: 710.00 zł | I145: 23% | J145: 873.30 zł | K145: B | L145: Standard | O145: =VLOOKUP(C145,[1]Arkusz1!$B:$D,3,0) -> 28.13.31.0 | Q145: N.D.
A146: 141 | B146: 01. Pompy ciepła | C146: 3.011667 | D146: 83071000 | E146: 8015065708121 | F146: Uniwersalny zestaw przyłączy elastycznych | G146: szt. | H146: 467.00 zł | I146: 23% | J146: 574.41 zł | K146: A | L146: Standard | O146: =VLOOKUP(C146,[1]Arkusz1!$B:$D,3,0) -> 25.99.29.0 | Q146: N.D.
A147: 142 | B147: 01. Pompy ciepła | C147: RB.29650650 | D147: 8481 80 19 | E147: 8019495403700 | F147: Filtr magnetyczny CleanWater z zaworami odcinającymi GW 1" | G147: szt. | H147: 594.00 zł | I147: 23% | J147: 730.62 zł | K147: B | L147: Standard | O147: 28.14.13.0 | Q147: N.D.
A148: 143 | B148: 01. Pompy ciepła | C148: 13000037 | D148: 8419 19 00 | E148: 8595590810693 | F148: Zasobnik do pomp ciepła OKC 200 NTR/HP | G148: szt. | H148: 6,635.00 zł | I148: 23% | J148: 8,161.05 zł | K148: A | L148: Standard | O148: 27.52.14.0 | Q148: N.D.
A149: 144 | B149: 01. Pompy ciepła | C149: 13000002 | D149: 8419 19 00 | E149: 8595590810778 | F149: Zasobnik do pomp ciepła OKC 250 NTR/HP | G149: szt. | H149: 7,592.00 zł | I149: 23% | J149: 9,338.16 zł | K149: A | L149: Standard | O149: 27.52.14.0 | Q149: N.D.
A150: 145 | B150: 01. Pompy ciepła | C150: 13000003 | D150: 8419 19 00 | E150: 8594036081543 | F150: Zasobnik do pomp ciepła OKC 300 NTR/HP | G150: szt. | H150: 7,975.00 zł | I150: 23% | J150: 9,809.25 zł | K150: A | L150: Standard | O150: 27.52.14.0 | Q150: N.D.
A151: 146 | B151: 01. Pompy ciepła | C151: 13000005 | D151: 8419 19 00 | E151: 8595590807228 | F151: Zasobnik do pomp ciepła OKC 500 NTR/HP | G151: szt. | H151: 13,772.00 zł | I151: 23% | J151: 16,939.56 zł | K151: A | L151: Na zapytanie | O151: 27.52.14.0 | Q151: N.D.
A152: 147 | B152: 01. Pompy ciepła | C152: 13000006 | D152: 8419 19 00 | E152: 8595590803404 | F152: Zasobnik do pomp ciepła OKC 750 NTR/HP | G152: szt. | H152: 31,001.00 zł | I152: 23% | J152: 38,131.23 zł | K152: A | L152: Na zapytanie | O152: 27.52.14.0 | Q152: N.D.
A153: 148 | B153: 01. Pompy ciepła | C153: 13000007 | D153: 8419 19 00 | E153: 8595590803411 | F153: Zasobnik do pomp ciepła OKC 1000 NTR/HP | G153: szt. | H153: 38,211.00 zł | I153: 23% | J153: 46,999.53 zł | K153: A | L153: Na zapytanie | O153: 27.52.14.0 | Q153: N.D.
A154: 149 | B154: 01. Pompy ciepła | C154: 13000022 | D154: 8516 80 80 | E154: 8595590811485 | F154: GRZAŁKA ELEKTRYCZNA TJ 6/4’’ – 2,5 kW (zasilanie 230 V) | G154: szt. | H154: 1,135.00 zł | I154: 23% | J154: 1,396.05 zł | K154: A | L154: Standard | N154: do OKC 200 - 1000 NTR/HP | O154: 27.51.29.0 | Q154: N.D.
A155: 150 | B155: 01. Pompy ciepła | C155: 13000021 | D155: 8516 80 80 | E155: 8595590811492 | F155: GRZAŁKA ELEKTRYCZNA TJ 6/4’’ – 3,3 kW (zasilanie 400 V) | G155: szt. | H155: 1,438.00 zł | I155: 23% | J155: 1,768.74 zł | K155: A | L155: Standard | N155: do OKC 200 - 1000 NTR/HP | O155: 27.51.29.0 | Q155: N.D.
A156: 151 | B156: 01. Pompy ciepła | C156: 13000016 | D156: 8516 80 80 | E156: 8595590811614 | F156: GRZAŁKA ELEKTRYCZNA TJ 6/4’’ – 6 kW (zasilanie 400 V) | G156: szt. | H156: 1,469.00 zł | I156: 23% | J156: 1,806.87 zł | K156: A | L156: Standard | N156: do OKC 400 - 1000 NTR/HP | O156: 27.51.29.0 | Q156: N.D.
A157: 152 | B157: 01. Pompy ciepła | C157: 13000010 | D157: 8516 80 80 | E157: 8595590807501 | F157: GRZAŁKA ELEKTRYCZNA REU 18-2,5 kW (zasilanie 230 V) | G157: szt. | H157: 2,019.00 zł | I157: 23% | J157: =H157*(1+I157) -> 2,483.37 zł | K157: A | L157: Standard | M157: DO WYCZERPANIA ZAPASÓW | N157: do OKC 300 /400/500 NTR/HP | O157: 27.51.29.0 | Q157: N.D.
A158: 153 | B158: 01. Pompy ciepła | C158: 13000011 | D158: 8516 80 80 | E158: 8595590807525 | F158: GRZAŁKA ELEKTRYCZNA RDU 18-3 kW (zasilanie 400 V) | G158: szt. | H158: 2,627.00 zł | I158: 23% | J158: 3,231.21 zł | K158: A | L158: Standard | M158: DO WYCZERPANIA ZAPASÓW | N158: do OKC 300 /400/500 NTR/HP | O158: 27.51.29.0 | Q158: N.D.
A159: 154 | B159: 01. Pompy ciepła | C159: 13000025 | D159: 7310 10 00 | E159: 8595590808188 | F159: Zbiornik buforowy - NAD 50 V1 | G159: szt. | H159: 2,495.00 zł | I159: 23% | J159: 3,068.85 zł | K159: A | L159: Standard | O159: 25.91.11.0 | Q159: N.D.
A160: 155 | B160: 01. Pompy ciepła | C160: 13000026 | D160: 7310 10 00 | E160: 8595590810709 | F160: Zbiornik buforowy - NAD 100 V1 | G160: szt. | H160: 2,960.00 zł | I160: 23% | J160: 3,640.80 zł | K160: A | L160: Standard | O160: 25.91.11.0 | Q160: N.D.
A161: 156 | B161: 01. Pompy ciepła | C161: 13000009 | D161: 7310 10 00 | E161: 8595590810785 | F161: Zbiornik buforowy - NAD 250 V1 | G161: szt. | H161: 4,620.00 zł | I161: 23% | J161: 5,682.60 zł | K161: A | L161: Standard | O161: 25.91.11.0 | Q161: N.D.
A162: 157 | B162: 01. Pompy ciepła | C162: 13000012 | D162: 7309 00 59 | E162: 8595590812505 | F162: Zbiornik buforowy - NAD 500 V1 | G162: szt. | H162: 7,520.00 zł | I162: 23% | J162: 9,249.60 zł | K162: A | L162: Na zapytanie | O162: 25.29.11.0 | Q162: N.D.
A163: 158 | B163: 01. Pompy ciepła | C163: 13000013 | D163: 7309 00 59 | E163: 8595590812673 | F163: Zbiornik buforowy - NAD 750 V1 | G163: szt. | H163: 8,637.00 zł | I163: 23% | J163: 10,623.51 zł | K163: A | L163: Na zapytanie | O163: 25.29.11.0 | Q163: N.D.
A164: 159 | B164: 01. Pompy ciepła | C164: 13000014 | D164: 7309 00 59 | E164: 8595590812598 | F164: Zbiornik buforowy - NAD 1000 V1 | G164: szt. | H164: 9,742.00 zł | I164: 23% | J164: 11,982.66 zł | K164: A | L164: Na zapytanie | O164: 25.29.11.0 | Q164: N.D.
A165: 160 | B165: 01. Pompy ciepła | C165: 13000021 | D165: 8516 80 80 | E165: 8595590811492 | F165: GRZAŁKA ELEKTRYCZNA TJ 6/4’’ – 3,3 kW (zasilanie 400 V) | G165: szt. | H165: 1,438.00 zł | I165: 23% | J165: 1,768.74 zł | K165: A | L165: Standard | N165: do NAD 50 - 1000 V1 | O165: 27.51.29.0 | Q165: N.D.
A166: 161 | B166: 01. Pompy ciepła | C166: 13000015 | D166: 8516 80 80 | E166: 8595590811591 | F166: GRZAŁKA ELEKTRYCZNA TJ 6/4’’ – 3,75 kW (zasilanie 400 V) | G166: szt. | H166: 1,407.00 zł | I166: 23% | J166: 1,730.61 zł | K166: A | L166: Standard | N166: do NAD 100 - 1000 V1 | O166: 27.51.29.0 | Q166: N.D.
A167: 162 | B167: 01. Pompy ciepła | C167: 13000016 | D167: 8516 80 80 | E167: 8595590811614 | F167: GRZAŁKA ELEKTRYCZNA TJ 6/4’’ – 6 kW (zasilanie 400 V) | G167: szt. | H167: 1,469.00 zł | I167: 23% | J167: 1,806.87 zł | K167: A | L167: Standard | N167: do NAD 100 - 1000 V1 | O167: 27.51.29.0 | Q167: N.D.
A168: 163 | B168: 01. Pompy ciepła | C168: 13000018 | D168: 8516 80 80 | E168: 8595590807587 | F168: GRZAŁKA ELEKTRYCZNA RDW 18-12 (zasilanie 400 V) | G168: szt. | H168: 3,325.00 zł | I168: 23% | J168: 4,089.75 zł | K168: A | L168: Standard | M168: DO WYCZERPANIA ZAPASÓW | N168: do NAD 500/750/ 1000 V1 – wymagana redukcja 210/150 | O168: 27.51.29.0 | Q168: N.D.
A169: 164 | B169: 01. Pompy ciepła | C169: 13000019 | D169: 8516 80 80 | E169: 8595590807594 | F169: GRZAŁKA ELEKTRYCZNA RDW 18-15 (zasilanie 400 V) | G169: szt. | H169: 3,660.00 zł | I169: 23% | J169: 4,501.80 zł | K169: A | L169: Standard | M169: DO WYCZERPANIA ZAPASÓW | N169: do NAD 750/ 1000 V1 – wymagana redukcja 210/150 | O169: 27.51.29.0 | Q169: N.D.
A170: 165 | B170: 01. Pompy ciepła | C170: 13000020 | D170: 8516 80 80 | E170: 8594036084933 | F170: Redukcja 210/150 do montażu grzałki we flanszy | G170: szt. | H170: 682.00 zł | I170: 23% | J170: 838.86 zł | K170: A | L170: Standard | O170: 27.51.29.0 | Q170: N.D.
A171: 166 | B171: 01. Pompy ciepła | C171: IS.0020 | D171: 8421 21 00 | E171: 5060011263059 | F171: Immersoft 20 | G171: szt. | H171: 4,491.00 zł | I171: 23% | J171: 5,523.93 zł | K171: B | L171: Standard | O171: 28.29.12.0 | Q171: N.D.
A172: 167 | B172: 01. Pompy ciepła | C172: 3.033625 | D172: 8415 83 00 | E172: 8015065139413 | F172: Klimakonwektor HYDRO 3 V2 | G172: szt. | H172: 2,988.00 zł | I172: 23% | J172: 3,675.24 zł | K172: A | L172: Standard | O172: 28.25.12.0 | Q172: N.D.
A173: 168 | B173: 01. Pompy ciepła | C173: 3.033626 | D173: 8415 83 00 | E173: 8015065139420 | F173: Klimakonwektor HYDRO 4 V2 | G173: szt. | H173: 3,281.00 zł | I173: 23% | J173: 4,035.63 zł | K173: A | L173: Standard | O173: 28.25.12.0 | Q173: N.D.
A174: 169 | B174: 01. Pompy ciepła | C174: 3.028500 | D174: 8415 83 00 | E174: 8015065093364 | F174: HYDRO FS 200 | G174: szt. | H174: 2,766.00 zł | I174: 23% | J174: 3,402.18 zł | K174: A | L174: Standard | O174: 28.25.12.0 | Q174: N.D.
A175: 170 | B175: 01. Pompy ciepła | C175: 3.028501 | D175: 8415 83 00 | E175: 8015065093371 | F175: HYDRO FS 400 | G175: szt. | H175: 3,019.00 zł | I175: 23% | J175: 3,713.37 zł | K175: A | L175: Standard | O175: 28.25.12.0 | Q175: N.D.
A176: 171 | B176: 01. Pompy ciepła | C176: 3.028502 | D176: 8415 83 00 | E176: 8015065093388 | F176: HYDRO FS 600 | G176: szt. | H176: 3,564.00 zł | I176: 23% | J176: 4,383.72 zł | K176: A | L176: Standard | O176: 28.25.12.0 | Q176: N.D.
A177: 172 | B177: 01. Pompy ciepła | C177: 3.028503 | D177: 8415 83 00 | E177: 8015065093395 | F177: HYDRO FS 800 | G177: szt. | H177: 4,242.00 zł | I177: 23% | J177: 5,217.66 zł | K177: A | L177: Standard | O177: 28.25.12.0 | Q177: N.D.
A178: 173 | B178: 01. Pompy ciepła | C178: 3.028505 | D178: 8415 83 00 | E178: 8015065093401 | F178: HYDRO FS 1000 | G178: szt. | H178: 4,814.00 zł | I178: 23% | J178: 5,921.22 zł | K178: A | L178: Na zapytanie | O178: 28.25.12.0 | Q178: N.D.
A179: 174 | B179: 01. Pompy ciepła | C179: 3.028506 | D179: 8415 90 00 | E179: 8015065093418 | F179: Zestaw maskujący rury podłączeniowe | G179: szt. | H179: 289.00 zł | I179: 23% | J179: 355.47 zł | K179: A | L179: Standard | O179: 28.25.30.0 | Q179: N.D.
A180: 175 | B180: 01. Pompy ciepła | C180: 3.028507 | D180: 8415 90 00 | E180: 8015065093425 | F180: Zestaw zaworu 2-drogowego | G180: szt. | H180: 789.00 zł | I180: 23% | J180: 970.47 zł | K180: A | L180: Standard | O180: 28.25.30.0 | Q180: N.D.
A181: 176 | B181: 01. Pompy ciepła | C181: 3.028508 | D181: 8415 90 00 | E181: 8015065093432 | F181: Zestaw zaworu 3-drogowego | G181: szt. | H181: 1,004.00 zł | I181: 23% | J181: 1,234.92 zł | K181: A | L181: Standard | O181: 28.25.30.0 | Q181: N.D.
A182: 177 | B182: 01. Pompy ciepła | C182: 3.028509 | D182: 8415 90 00 | E182: 8015065093449 | F182: Panel sterowania modulujący | G182: szt. | H182: 1,203.00 zł | I182: 23% | J182: 1,479.69 zł | K182: A | L182: Standard | O182: 28.25.30.0 | Q182: N.D.
A183: 178 | B183: 01. Pompy ciepła | C183: 3.028510 | D183: 8415 90 00 | E183: 8015065093456 | F183: Panel sterowania - 4 stopniowy | G183: szt. | H183: 771.00 zł | I183: 23% | J183: 948.33 zł | K183: A | L183: Standard | O183: 28.25.30.0 | Q183: N.D.
A184: 179 | B184: 01. Pompy ciepła | C184: 3.028511 | D184: 8415 90 00 | E184: 8015065093463 | F184: Uniwersalna płytka ON/OFF do łączenia z zewnętrznymi termostatami | G184: szt. | H184: 771.00 zł | I184: 23% | J184: 948.33 zł | K184: A | L184: Na zapytanie | O184: 28.25.30.0 | Q184: N.D.
A185: 180 | B185: 01. Pompy ciepła | C185: 3.028512 | D185: 8415 90 00 | E185: 8015065093470 | F185: Uniwersalna płytka z modulacją do łączenia z zewnętrznymi termostatami 0-10 V | G185: szt. | H185: 792.00 zł | I185: 23% | J185: 974.16 zł | K185: A | L185: Na zapytanie | O185: 28.25.30.0 | Q185: N.D.
A186: 181 | B186: 01. Pompy ciepła | C186: 3.029834 | D186: 8415 90 00 | E186: 8015065102530 | F186: Adapter HYDRO FS | G186: szt. | H186: 163.00 zł | I186: 23% | J186: 200.49 zł | K186: A | L186: Standard | O186: 28.25.30.0 | Q186: N.D.
A187: 182 | B187: 01. Pompy ciepła | C187: 3.032639 | D187: 8418 61 00 | E187: 8015065132865 | F187: IMMERWATER 300 S V5 | G187: szt. | H187: 14,870.00 zł | I187: 23% | J187: 18,290.10 zł | K187: A | L187: Standard | O187: 28.25.13.0 | Q187: hermetyczne
A188: 183 | B188: 02. Klimatyzacja | C188: 99000337 | D188: N.D. | E188: 5907538013296 | F188: Zestaw klimatyzator ścienny Thor moc 2,6 kW( jednostka zewnętrzna i wewnętrzna) | G188: szt. | H188: 3,198.00 zł | I188: 23% | J188: 3,933.54 zł | K188: A | L188: Standard | N188: NOWOŚĆ! | Q188: niehermetyczne
A189: 184 | B189: 02. Klimatyzacja | C189: 99000338 | D189: N.D. | E189: 5907538013302 | F189: Zestaw klimatyzator ścienny Thor moc 3,5 kW( jednostka zewnętrzna i wewnętrzna) | G189: szt. | H189: 3,405.00 zł | I189: 23% | J189: 4,188.15 zł | K189: A | L189: Standard | N189: NOWOŚĆ! | Q189: niehermetyczne
A190: 185 | B190: 02. Klimatyzacja | C190: 3.035031 | D190: 84151090 | E190: 8015065152894 | F190: UI THOR 9 - jednostka wewnętrzna | G190: szt. | H190: 1,120.00 zł | I190: 23% | J190: 1,377.60 zł | K190: A | L190: Standard | N190: NOWOŚĆ! | O190: 28.25.12.0
A191: 186 | B191: 02. Klimatyzacja | C191: 3.035032 | D191: 84151090 | E191: 8015065152900 | F191: UE THOR 9 - jednostka zewnętrzna | G191: szt. | H191: 2,078.00 zł | I191: 23% | J191: 2,555.94 zł | K191: A | L191: Standard | N191: NOWOŚĆ! | O191: 28.25.12.0
A192: 187 | B192: 02. Klimatyzacja | C192: 3.035033 | D192: 84151090 | E192: 8015065152917 | F192: UI THOR 12 - jednostka wewnętrzna | G192: szt. | H192: 1,203.00 zł | I192: 23% | J192: 1,479.69 zł | K192: A | L192: Standard | N192: NOWOŚĆ! | O192: 28.25.12.0
A193: 188 | B193: 02. Klimatyzacja | C193: 3.035034 | D193: 84151090 | E193: 8015065152924 | F193: UE THOR 12 - jednostka zewnętrzna | G193: szt. | H193: 2,202.00 zł | I193: 23% | J193: 2,708.46 zł | K193: A | L193: Standard | N193: NOWOŚĆ! | O193: 28.25.12.0
A194: 189 | B194: 02. Klimatyzacja | C194: 3.035035 | D194: 84151090 | E194: 8015065152931 | F194: UI THOR 18 - jednostka wewnętrzna | G194: szt. | H194: 1,926.00 zł | I194: 23% | J194: 2,368.98 zł | K194: A | L194: Standard | N194: NOWOŚĆ! | O194: 28.25.12.0
A195: 190 | B195: 02. Klimatyzacja | C195: 3.035036 | D195: 84151090 | E195: 8015065152948 | F195: UE THOR 18 - jednostka zewnętrzna | G195: szt. | H195: 4,267.00 zł | I195: 23% | J195: 5,248.41 zł | K195: A | L195: Standard | N195: NOWOŚĆ! | O195: 28.25.12.0
A196: 191 | B196: 02. Klimatyzacja | C196: 3.035037 | D196: 84151090 | E196: 8015065152955 | F196: UI THOR 24 - jednostka wewnętrzna | G196: szt. | H196: 2,268.00 zł | I196: 23% | J196: 2,789.64 zł | K196: A | L196: Standard | N196: NOWOŚĆ! | O196: 28.25.12.0
A197: 192 | B197: 02. Klimatyzacja | C197: 3.035038 | D197: 84151090 | E197: 8015065152962 | F197: UE THOR 24 - jednostka zewnętrzna | G197: szt. | H197: 5,804.00 zł | I197: 23% | J197: 7,138.92 zł | K197: A | L197: Standard | N197: NOWOŚĆ! | O197: 28.25.12.0
A198: 193 | B198: 02. Klimatyzacja | C198: 99000339 | D198: N.D. | E198: 5907538013319 | F198: Zestaw klimatyzator ścienny Gotha moc 2,6 kW( jednostka zewnętrzna i wewnętrzna) | G198: szt. | H198: 3,973.00 zł | I198: 23% | J198: =H198*(1+I198) -> 4,886.79 zł | K198: A | L198: Standard | N198: NOWOŚĆ! | Q198: niehermetyczne
A199: 194 | B199: 02. Klimatyzacja | C199: 99000340 | D199: N.D. | E199: 5907538013326 | F199: Zestaw klimatyzator ścienny Gotha moc 3,5 kW( jednostka zewnętrzna i wewnętrzna) | G199: szt. | H199: 4,252.00 zł | I199: 23% | J199: 5,229.96 zł | K199: A | L199: Standard | N199: NOWOŚĆ! | Q199: niehermetyczne
A200: 195 | B200: 02. Klimatyzacja | C200: 3.035039 | D200: 84151090 | E200: 8015065152979 | F200: UI GOTHA 9 - jednostka wewnętrzna | G200: szt. | H200: 1,381.00 zł | I200: 23% | J200: 1,698.63 zł | K200: A | L200: Standard | N200: NOWOŚĆ! | O200: 28.25.12.0
A201: 196 | B201: 02. Klimatyzacja | C201: 3.035040 | D201: 84151090 | E201: 8015065152986 | F201: UE GOTHA 9 - jednostka zewnętrzna | G201: szt. | H201: 2,592.00 zł | I201: 23% | J201: 3,188.16 zł | K201: A | L201: Standard | N201: NOWOŚĆ! | O201: 28.25.12.0
A202: 197 | B202: 02. Klimatyzacja | C202: 3.035041 | D202: 84151090 | E202: 8015065152993 | F202: UI GOTHA 12 - jednostka wewnętrzna | G202: szt. | H202: 1,482.00 zł | I202: 23% | J202: 1,822.86 zł | K202: A | L202: Standard | N202: NOWOŚĆ! | O202: 28.25.12.0
... 370 more rows

Sheet WYCOFANE Z OFERTY
D1: OFERTA DLA OBIEKTÓW
D3: PRODUKTY WYCOFANE Z OFERTY
A6: DZIAŁ | B6: KOD | C6: EAN | D6: OPIS PRODUKTU
A7: 04. Kotły gazowe o mocy do 35 Kw | B7: 3.025494 | C7: 8015065056567 | D7: Hercules Condensing ABT 32 3 ErP
A8: 04. Kotły gazowe o mocy do 35 Kw | B8: 3.019212 | C8: 8015065400582 | D8: Zestaw przezbrojeniowy na.GZ 41.5 - HERCULES CONDENSING 32 i 32 ABT
A9: 04. Kotły gazowe o mocy do 35 Kw | B9: 3.031572 | C9: 8015065123344 | D9: Zestaw przezbrojeniowy na gaz płynny
A10: 04. Kotły gazowe o mocy do 35 Kw | B10: 3.025486 | C10: 8015065063305 | D10: Zestaw 3 strefy niskiej temp. do wersji ABT
A11: 08. Sys. pow.-spal. aluminiowo-tworzywowe | B11: 3.010959 | C11: 8015065707568 | D11: Rozeta maskująca Ø100 (zestaw 2 szt.)
A12: 08. Sys. pow.-spal. aluminiowo-tworzywowe | B12: 1.011937 | C12: 8015065307409 | D12: Rozeta maskująca Ø80
A13: 09. Zasobniki C.W.U | B13: UBS250SOL | C13: 8595590811157 | D13: Zasobnik UBS 250 SOL
A14: 09. Zasobniki C.W.U | B14: UBSA6199208 | C14: 5907538002245 | D14: Anoda do zasobników UBS300SOLv2
